fUST/lending_fUST_20250401
["ID","MTS","AMOUNT","RATE_DAILY","PERIOD"]
[356969628,1743511833086,-500.0,0.00016438,2]
[356969629,1743511833096,-3356.11,0.00016438,2]
[356969630,1743511833105,-500.0,0.00016438,2]
[356969631,1743511833118,-500.0,0.00016438,2]
[356969632,1743511833129,-540.11,0.00016438,2]
[356969633,1743511833139,-640.2,0.00016438,2]
[356969634,1743511833148,-564.61,0.00016438,2]
[356969635,1743511833159,-1033.56,0.00016438,2]
[356969636,1743511833169,-591.02876201,0.00016438,2]
[356969637,1743511833178,-500.0,0.00016438,2]
[356969638,1743511833191,-500.0,0.00016438,2]
[356969639,1743511833202,-532.66,0.00016438,2]
[356969640,1743511833212,-2934.38,0.00016438,2]
[356969641,1743511833223,-500.0,0.00016438,2]
[356969642,1743511833232,-500.0,0.00016438,2]
[356969643,1743511833242,-987.59,0.00016438,2]
[356969644,1743511833252,-500.0,0.00016438,2]
[356969645,1743511833262,-500.0,0.00016438,2]
[356969646,1743511833273,-599.43,0.00016438,2]
[356969647,1743511833282,-4154.16,0.00016438,2]
[356969648,1743511833293,-500.0,0.00016438,2]
[356969649,1743511833303,-500.0,0.00016438,2]
[356969650,1743511833313,-521.13102564,0.00016438,2]
[356969651,1743511833322,-500.0,0.00016438,2]
[356969652,1743511833332,-500.0,0.00016438,2]
[356969653,1743511833342,-500.0,0.00016438,2]
[356969654,1743511833352,-500.0,0.00016438,2]
[356969655,1743511833362,-500.0,0.00016438,2]
[356969656,1743511833372,-686.03,0.00016438,2]
[356969657,1743511833381,-500.0,0.00016438,2]
[356969658,1743511833391,-549.89,0.00016438,2]
[356969659,1743511833400,-500.0,0.00016438,2]
[356969660,1743511833410,-635.45,0.00016438,2]
[356969661,1743511833419,-500.0,0.00016438,2]
[356969662,1743511833430,-500.0,0.00016438,2]
[356969663,1743511833439,-500.0,0.00016438,2]
[356969664,1743511833449,-618.27,0.00016438,2]
[356969665,1743511833458,-500.0,0.00016438,2]
[356969666,1743511833468,-500.0,0.00016438,2]
[356969667,1743511833478,-500.0,0.00016438,2]
[356969668,1743511833488,-500.0,0.00016438,2]
[356969669,1743511833497,-500.0,0.00016438,2]
[356969670,1743511833507,-500.0,0.00016438,2]
[356969671,1743511833518,-500.0,0.00016438,2]
[356969672,1743511833528,-500.0,0.00016438,2]
[356969673,1743511833537,-500.0,0.00016438,2]
[356969674,1743511833547,-332.94129778,0.00016438,2]
[356969675,1743511833556,-618.55,0.00016438,2]
[356969676,1743511833566,-500.0,0.00016438,2]
[356969677,1743511833762,-500.0,0.00016438,2]
[356969678,1743511833773,-500.0,0.00016438,2]
[356969679,1743511833783,-3733.39,0.00016438,2]
[356969680,1743511833793,-500.0,0.00016438,2]
[356969681,1743511833803,-500.0,0.00016438,2]
[356969682,1743511833813,-552.2,0.00016438,2]
[356969683,1743511833823,-500.0,0.00016438,2]
[356969684,1743511833833,-589.15,0.00016438,2]
[356969685,1743511833849,-500.0,0.00016438,2]
[356969686,1743511833860,-2903.61,0.00016438,2]
[356969687,1743511833871,-500.0,0.00016438,2]
[356969688,1743511833881,-500.0,0.00016438,2]
[356969689,1743511833891,-500.0,0.00016438,2]
[356969690,1743511833902,-500.0,0.00016438,2]
[356969691,1743511833917,-500.0,0.00016438,2]
[356969692,1743511833927,-500.0,0.00016438,2]
[356969693,1743511833937,-4746.78,0.00016438,2]
[356969694,1743511833946,-500.0,0.00016438,2]
[356969695,1743511833957,-500.0,0.00016438,2]
[356969696,1743511833967,-500.0,0.00016438,2]
[356969697,1743511833977,-1427.21,0.00016438,2]
[356969698,1743511833987,-1831.33,0.00016438,2]
[356969699,1743511833997,-829.33,0.00016438,2]
[356969700,1743511834007,-500.0,0.00016438,2]
[356969701,1743511834018,-500.0,0.00016438,2]
[356969702,1743511834028,-901.12,0.00016438,2]
[356969703,1743511834038,-10198.4,0.00016438,2]
[356969704,1743511834049,-1956.22,0.00016438,2]
[356969705,1743511834060,-500.0,0.00016438,2]
[356969706,1743511834070,-500.0,0.00016438,2]
[356969707,1743511834080,-539.81,0.00016438,2]
[356969708,1743511834090,-607.67,0.00016438,2]
[356969709,1743511834100,-4310.96,0.00016438,2]
[356969710,1743511834111,-200.0,0.00016438,2]
[356969711,1743511834124,-2071.97,0.00016438,2]
[356969712,1743511834135,-500.0,0.00016438,2]
[356969713,1743511834145,-898.84,0.00016438,2]
[356969714,1743511834154,-500.0,0.00016438,2]
[356969715,1743511834164,-500.0,0.00016438,2]
[356969716,1743511834173,-500.0,0.00016438,2]
[356969717,1743511834184,-1742.34,0.00016438,2]
[356969718,1743511834195,-500.0,0.00016438,2]
[356969719,1743511834205,-594.35,0.00016438,2]
[356969720,1743511834216,-500.0,0.00016438,2]
[356969721,1743511834225,-505.77,0.00016438,2]
[356969722,1743511834235,-11519.68,0.00016438,2]
[356969723,1743511834244,-3396.4,0.00016438,2]
[356969724,1743511834255,-500.0,0.00016438,2]
[356969725,1743511834267,-588.38,0.00016438,2]
[356969726,1743511834277,-500.0,0.00016438,2]
[356969727,1743511834287,-597.82,0.00016438,2]
[356969728,1743511834297,-500.0,0.00016438,2]
[356969729,1743511834307,-500.0,0.00016438,2]
[356969730,1743511834318,-500.0,0.00016438,2]
[356969731,1743511834329,-6013.25,0.00016438,2]
[356969732,1743511834339,-500.0,0.00016438,2]
[356969733,1743511834349,-698.88,0.00016438,2]
[356969734,1743511834360,-926.1,0.00016438,2]
[356969735,1743511834369,-2627.75,0.00016438,2]
[356969736,1743511834380,-2688.77,0.00016438,2]
[356969737,1743511834390,-1319.31,0.00016438,2]
[356969738,1743511834400,-2867.87,0.00016438,2]
[356969739,1743511834410,-3629.52,0.00016438,2]
[356969740,1743511834421,-907.13,0.00016438,2]
[356969741,1743511834431,-770.9,0.00016438,2]
[356969742,1743511834441,-500.0,0.00016438,2]
[356969743,1743511834451,-584.69,0.00016438,2]
[356969744,1743511834461,-543.74,0.00016438,2]
[356969745,1743511834471,-1161.33,0.00016438,2]
[356969746,1743511834480,-500.0,0.00016438,2]
[356969747,1743511834491,-1377.78,0.00016438,2]
[356969748,1743511834500,-814.41,0.00016438,2]
[356969749,1743511834510,-2088.0,0.00016438,2]
[356969750,1743511834523,-539.2,0.00016438,2]
[356969751,1743511834532,-820.58,0.00016438,2]
[356969752,1743511834542,-500.0,0.00016438,2]
[356969753,1743511834551,-500.0,0.00016438,2]
[356969754,1743511834562,-500.0,0.00016438,2]
[356969755,1743511834571,-500.0,0.00016438,2]
[356969756,1743511834582,-500.0,0.00016438,2]
[356969757,1743511834592,-500.0,0.00016438,2]
[356969758,1743511834602,-5678.07,0.00016438,2]
[356969759,1743511834612,-500.0,0.00016438,2]
[356969760,1743511834622,-500.0,0.00016438,2]
[356969761,1743511834632,-500.0,0.00016438,2]
[356969762,1743511834641,-500.0,0.00016438,2]
[356969763,1743511834651,-1230.57,0.00016438,2]
[356969764,1743511834660,-932.68,0.00016438,2]
[356969765,1743511834670,-500.0,0.00016438,2]
[356969766,1743511834680,-500.0,0.00016438,2]
[356969767,1743511834690,-500.0,0.00016438,2]
[356969768,1743511834699,-968.43,0.00016438,2]
[356969769,1743511834709,-590.49,0.00016438,2]
[356969770,1743511834718,-500.0,0.00016438,2]
[356969771,1743511834728,-1446.65,0.00016438,2]
[356969772,1743511834737,-500.0,0.00016438,2]
[356969773,1743511834747,-500.0,0.00016438,2]
[356969774,1743511834757,-3087.28,0.00016438,2]
[356969775,1743511834766,-1474.18,0.00016438,2]
[356969776,1743511834776,-500.0,0.00016438,2]
[356969777,1743511834786,-1315.11,0.00016438,2]
[356969778,1743511834795,-500.0,0.00016438,2]
[356969779,1743511834804,-500.0,0.00016438,2]
[356969780,1743511834814,-2138.38,0.00016438,2]
[356969781,1743511834824,-500.0,0.00016438,2]
[356969782,1743511834835,-562.71404828,0.00016712,2]
[356969783,1743511834844,-500.0,0.00016712,2]
[356969784,1743511834854,-500.0,0.00016712,2]
[356969785,1743511834864,-381.40983869,0.00016712,2]
[356969786,1743511834873,-500.0,0.00016712,2]
[356969787,1743511834883,-500.0,0.00016712,2]
[356969788,1743511834893,-500.0,0.00016712,2]
[356969789,1743511834902,-500.0,0.00016712,2]
[356969790,1743511834911,-500.0,0.00016712,2]
[356969791,1743511834921,-500.0,0.00016712,2]
[356969792,1743511834931,-500.0,0.00016712,2]
[356969793,1743511834941,-500.0,0.00016712,2]
[356969794,1743511834951,-500.0,0.00016712,2]
[356969795,1743511834960,-500.0,0.00016712,2]
[356969796,1743511834969,-500.0,0.00016712,2]
[356969797,1743511834979,-500.0,0.00016712,2]
[356969798,1743511834989,-500.0,0.00016712,2]
[356969799,1743511834999,-500.0,0.00016712,2]
[356969800,1743511835009,-500.0,0.00016712,2]
[356969801,1743511835020,-500.0,0.00016712,2]
[356969802,1743511835029,-500.0,0.00016712,2]
[356969803,1743511835039,-500.0,0.00016712,2]
[356969804,1743511835048,-500.0,0.00016712,2]
[356969805,1743511835058,-500.0,0.00016712,2]
[356969806,1743511835069,-500.0,0.00016712,2]
[356969807,1743511835080,-500.0,0.00016712,2]
[356969808,1743511835089,-500.0,0.00016712,2]
[356969809,1743511835099,-500.0,0.00016712,2]
[356969810,1743511835109,-500.0,0.00016712,2]
[356969811,1743511835123,-559.76,0.00016712,2]
[356969812,1743511835132,-500.0,0.00016712,2]
[356969813,1743511835142,-500.0,0.00016712,2]
[356969814,1743511835151,-500.0,0.00016712,2]
[356969815,1743511835161,-812.55,0.00016712,2]
[356969816,1743511835171,-500.0,0.00016712,2]
[356969817,1743511835181,-785.36,0.00016712,2]
[356969818,1743511835190,-500.0,0.00016712,2]
[356969819,1743511835202,-500.0,0.00016712,2]
[356969820,1743511835211,-500.0,0.00016712,2]
[356969821,1743511835220,-500.0,0.00016712,2]
[356969822,1743511835230,-791.06,0.00016712,2]
[356969823,1743511835239,-500.0,0.00016712,2]
[356969824,1743511835248,-500.0,0.00016712,2]
[356969825,1743511835257,-500.0,0.00016712,2]
[356969826,1743511835267,-500.0,0.00016712,2]
[356969827,1743511835277,-500.0,0.00016712,2]
[356969828,1743511835286,-500.0,0.00016712,2]
[356969829,1743511835296,-500.0,0.00016712,2]
[356969830,1743511835306,-500.0,0.00016712,2]
[356969831,1743511835315,-500.0,0.00016712,2]
[356969832,1743511835325,-500.0,0.00016712,2]
[356969833,1743511835334,-500.0,0.00016712,2]
[356969834,1743511835343,-500.0,0.00016712,2]
[356969835,1743511835353,-1670.24,0.00016712,2]
[356969836,1743511835362,-500.0,0.00016712,2]
[356969837,1743511835371,-500.0,0.00016712,2]
[356969838,1743511835381,-500.0,0.00016712,2]
[356969839,1743511835390,-500.0,0.00016712,2]
[356969840,1743511835399,-500.0,0.00016712,2]
[356969841,1743511835408,-500.0,0.00016712,2]
[356969842,1743511835418,-500.0,0.00016712,2]
[356969843,1743511835427,-707.22,0.00016712,2]
[356969844,1743511835437,-500.0,0.00016712,2]
[356969845,1743511835446,-500.0,0.00016712,2]
[356969846,1743511835456,-500.0,0.00016712,2]
[356969847,1743511835465,-598.04297463,0.00016712,2]
[356969848,1743511835475,-500.0,0.00016712,2]
[356969849,1743511835485,-500.0,0.00016712,2]
[356969850,1743511835494,-901.5,0.00016712,2]
[356969851,1743511835504,-500.0,0.00016712,2]
[356969852,1743511835513,-500.0,0.00016712,2]
[356969853,1743511835524,-864.64,0.00016712,2]
[356969854,1743511835533,-500.0,0.00016712,2]
[356969855,1743511835543,-619.0,0.00016712,2]
[356969856,1743511835552,-896.88,0.00016712,2]
[356969857,1743511835562,-500.0,0.00016712,2]
[356969858,1743511835571,-500.0,0.00016712,2]
[356969859,1743511835581,-1772.12,0.00016712,2]
[356969860,1743511835590,-500.0,0.00016712,2]
[356969861,1743511835600,-596.7,0.00016712,2]
[356969862,1743511835609,-500.0,0.00016712,2]
[356969863,1743511835618,-500.0,0.00016712,2]
[356969864,1743511835627,-500.0,0.00016712,2]
[356969865,1743511835637,-500.0,0.00016712,2]
[356969866,1743511835646,-500.0,0.00016712,2]
[356969867,1743511835655,-3356.11,0.00016712,2]
[356969868,1743511835665,-500.0,0.00016712,2]
[356969869,1743511835675,-500.0,0.00016712,2]
[356969870,1743511835684,-540.11,0.00016712,2]
[356969871,1743511835693,-640.2,0.00016712,2]
[356969872,1743511835703,-564.61,0.00016712,2]
[356969873,1743511835713,-1033.56,0.00016712,2]
[356969874,1743511835722,-500.0,0.00016712,2]
[356969875,1743511835732,-500.0,0.00016712,2]
[356969876,1743511835742,-532.66,0.00016712,2]
[356969877,1743511835752,-2934.38,0.00016712,2]
[356969878,1743511835761,-500.0,0.00016712,2]
[356969879,1743511835771,-500.0,0.00016712,2]
[356969880,1743511835781,-987.59,0.00016712,2]
[356969881,1743511835791,-500.0,0.00016712,2]
[356969882,1743511835800,-500.0,0.00016712,2]
[356969883,1743511835810,-599.43,0.00016712,2]
[356969884,1743511835819,-4154.16,0.00016712,2]
[356969885,1743511835830,-500.0,0.00016712,2]
[356969886,1743511835839,-500.0,0.00016712,2]
[356969887,1743511835850,-500.0,0.00016712,2]
[356969888,1743511835859,-473.05231962,0.00016712,2]
[356969889,1743511835868,-500.0,0.00016712,2]
[356969890,1743511835878,-500.0,0.00016712,2]
[356969891,1743511835887,-500.0,0.00016712,2]
[356969892,1743511835897,-686.03,0.00016712,2]
[356969893,1743511835906,-500.0,0.00016712,2]
[356969894,1743511835916,-549.89,0.00016712,2]
[356969895,1743511835926,-500.0,0.00016712,2]
[356969896,1743511835936,-635.45,0.00016712,2]
[356969897,1743511835945,-500.0,0.00016712,2]
[356969898,1743511835955,-500.0,0.00016712,2]
[356969899,1743511835964,-500.0,0.00016712,2]
[356969900,1743511835974,-618.27,0.00016712,2]
[356969901,1743511835984,-500.0,0.00016712,2]
[356969902,1743511835994,-500.0,0.00016712,2]
[356969903,1743511836003,-500.0,0.00016712,2]
[356969904,1743511836013,-500.0,0.00016712,2]
[356969905,1743511836024,-500.0,0.00016712,2]
[356969906,1743511836033,-500.0,0.00016712,2]
[356969907,1743511836043,-500.0,0.00016712,2]
[356969908,1743511836053,-500.0,0.00016712,2]
[356969909,1743511836063,-500.0,0.00016712,2]
[356969910,1743511836072,-618.55,0.00016712,2]
[356969911,1743511836082,-500.0,0.00016712,2]
[356969912,1743511836091,-500.0,0.00016712,2]
[356969913,1743511836101,-500.0,0.00016712,2]
[356969914,1743511836111,-3733.39,0.00016712,2]
[356969915,1743511836125,-500.0,0.00016712,2]
[356969916,1743511836134,-500.0,0.00016712,2]
[356969917,1743511836143,-552.2,0.00016712,2]
[356969918,1743511836152,-500.0,0.00016712,2]
[356969919,1743511836162,-589.15,0.00016712,2]
[356969920,1743511836172,-500.0,0.00016712,2]
[356969921,1743511836182,-2903.61,0.00016712,2]
[356969922,1743511836192,-500.0,0.00016712,2]
[356969923,1743511836202,-500.0,0.00016712,2]
[356969924,1743511836212,-520.86776226,0.00016712,2]
[356969925,1743511836222,-500.0,0.00016712,2]
[356969926,1743511836231,-500.0,0.00016712,2]
[356969927,1743511836241,-500.0,0.00016712,2]
[356969928,1743511836250,-4746.78,0.00016712,2]
[356969929,1743511836259,-500.0,0.00016712,2]
[356969930,1743511836268,-500.0,0.00016712,2]
[356969931,1743511836277,-500.0,0.00016712,2]
[356969932,1743511836287,-1427.21,0.00016712,2]
[356969933,1743511836297,-1831.33,0.00016712,2]
[356969934,1743511836307,-829.33,0.00016712,2]
[356969935,1743511836317,-500.0,0.00016712,2]
[356969936,1743511836326,-500.0,0.00016712,2]
[356969937,1743511836336,-901.12,0.00016712,2]
[356969938,1743511836346,-10198.4,0.00016712,2]
[356969939,1743511836355,-1956.22,0.00016712,2]
[356969940,1743511836365,-500.0,0.00016712,2]
[356969941,1743511836374,-500.0,0.00016712,2]
[356969942,1743511836384,-539.81,0.00016712,2]
[356969943,1743511836393,-607.67,0.00016712,2]
[356969944,1743511836403,-4310.96,0.00016712,2]
[356969945,1743511836413,-200.0,0.00016712,2]
[356969946,1743511836423,-2071.97,0.00016712,2]
[356969947,1743511836432,-500.0,0.00016712,2]
[356969948,1743511836442,-898.84,0.00016712,2]
[356969949,1743511836452,-500.0,0.00016712,2]
[356969950,1743511836463,-500.0,0.00016712,2]
[356969951,1743511836472,-500.0,0.00016712,2]
[356969952,1743511836482,-1742.34,0.00016712,2]
[356969953,1743511836492,-500.0,0.00016712,2]
[356969954,1743511836501,-594.35,0.00016712,2]
[356969955,1743511836511,-500.0,0.00016712,2]
[356969956,1743511836522,-505.77,0.00016712,2]
[356969957,1743511836532,-11519.68,0.00016712,2]
[356969958,1743511836542,-3396.4,0.00016712,2]
[356969959,1743511836552,-500.0,0.00016712,2]
[356969960,1743511836561,-588.38,0.00016712,2]
[356969961,1743511836570,-500.0,0.00016712,2]
[356969962,1743511836579,-597.82,0.00016712,2]
[356969963,1743511836589,-500.0,0.00016712,2]
[356969964,1743511836598,-500.0,0.00016712,2]
[356969965,1743511836608,-500.0,0.00016712,2]
[356969966,1743511836617,-6013.25,0.00016712,2]
[356969967,1743511836627,-500.0,0.00016712,2]
[356969968,1743511836636,-698.88,0.00016712,2]
[356969969,1743511836646,-926.1,0.00016712,2]
[356969970,1743511836656,-2627.75,0.00016712,2]
[356969971,1743511836666,-2688.77,0.00016712,2]
[356969972,1743511836675,-1319.31,0.00016712,2]
[356969973,1743511836685,-2867.87,0.00016712,2]
[356969974,1743511836695,-3629.52,0.00016712,2]
[356969975,1743511836704,-907.13,0.00016712,2]
[356969976,1743511836714,-770.9,0.00016712,2]
[356969977,1743511836723,-500.0,0.00016712,2]
[356969978,1743511836733,-584.69,0.00016712,2]
[356969979,1743511836743,-543.74,0.00016712,2]
[356969980,1743511836752,-1161.33,0.00016712,2]
[356969981,1743511836762,-500.0,0.00016712,2]
[356969982,1743511836772,-1377.78,0.00016712,2]
[356969983,1743511836781,-814.41,0.00016712,2]
[356969984,1743511836791,-2088.0,0.00016712,2]
[356969985,1743511836801,-539.2,0.00016712,2]
[356969986,1743511836810,-820.58,0.00016712,2]
[356969987,1743511836819,-500.0,0.00016712,2]
[356969988,1743511836829,-494.99738389,0.00016712,2]
[356969989,1743511836838,-500.0,0.00016712,2]
[356969990,1743511836847,-500.0,0.00016712,2]
[356969991,1743511836857,-500.0,0.00016712,2]
[356969992,1743511836868,-500.0,0.00016712,2]
[356969993,1743511836878,-5678.07,0.00016712,2]
[356969994,1743511836887,-500.0,0.00016712,2]
[356969995,1743511836897,-500.0,0.00016712,2]
[356969996,1743511836906,-500.0,0.00016712,2]
[356969997,1743511836915,-500.0,0.00016712,2]
[356969998,1743511836924,-1230.57,0.00016712,2]
[356969999,1743511836934,-932.68,0.00016712,2]
[356970000,1743511836945,-500.0,0.00016712,2]
[356970001,1743511836954,-500.0,0.00016712,2]
[356970002,1743511836963,-500.0,0.00016712,2]
[356970003,1743511836974,-968.43,0.00016712,2]
[356970004,1743511836984,-590.49,0.00016712,2]
[356970005,1743511836994,-500.0,0.00016712,2]
[356970006,1743511837007,-1446.65,0.00016712,2]
[356970007,1743511837017,-500.0,0.00016712,2]
[356970008,1743511837027,-500.0,0.00016712,2]
[356970009,1743511837037,-3087.28,0.00016712,2]
[356970010,1743511837046,-1474.18,0.00016712,2]
[356970011,1743511837055,-284.54679321,0.00016712,2]
[356970012,1743511837065,-1315.11,0.00016712,2]
[356970013,1743511837076,-174.68120549,0.00016712,2]
[356970014,1743511837086,-500.0,0.00016712,2]
[356970015,1743511837096,-2138.38,0.00016712,2]
[356970016,1743511837105,-500.0,0.00016712,2]
[356970017,1743511837118,-420.0,0.00016879,2]
[356970018,1743511837129,-500.0,0.00016986,2]
[356970019,1743511837139,-500.0,0.00016986,2]
[356970020,1743511837149,-500.0,0.00016986,2]
[356970021,1743511837159,-500.0,0.00016986,2]
[356970022,1743511837168,-500.0,0.00016986,2]
[356970023,1743511837177,-500.0,0.00016986,2]
[356970024,1743511837187,-500.0,0.00016986,2]
[356970025,1743511837197,-500.0,0.00016986,2]
[356970026,1743511837206,-500.0,0.00016986,2]
[356970028,1743511837216,-500.0,0.00016986,2]
[356970029,1743511837225,-500.0,0.00016986,2]
[356970030,1743511837235,-500.0,0.00016986,2]
[356970031,1743511837245,-500.0,0.00016986,2]
[356970032,1743511837254,-500.0,0.00016986,2]
[356970033,1743511837264,-500.0,0.00016986,2]
[356970035,1743511837274,-500.0,0.00016986,2]
[356970037,1743511837284,-500.0,0.00016986,2]
[356970038,1743511837293,-500.0,0.00016986,2]
[356970039,1743511837304,-500.0,0.00016986,2]
[356970040,1743511837314,-500.0,0.00016986,2]
[356970041,1743511837324,-500.0,0.00016986,2]
[356970042,1743511837335,-500.0,0.00016986,2]
[356970043,1743511837345,-500.0,0.00016986,2]
[356970044,1743511837355,-500.0,0.00016986,2]
[356970045,1743511837366,-500.0,0.00016986,2]
[356970046,1743511837378,-305.79201731,0.00016986,2]
[356970047,1743511837387,-500.0,0.00016986,2]
[356970048,1743511837396,-559.76,0.00016986,2]
[356970061,1743511837407,-500.0,0.00016986,2]
[356970064,1743511837562,-500.0,0.00016986,2]
[356970066,1743511837572,-500.0,0.00016986,2]
[356970068,1743511837582,-812.55,0.00016986,2]
[356970070,1743511837591,-500.0,0.00016986,2]
[356970072,1743511837600,-785.36,0.00016986,2]
[356970074,1743511837609,-500.0,0.00016986,2]
[356970076,1743511837618,-500.0,0.00016986,2]
[356970078,1743511837627,-500.0,0.00016986,2]
[356970080,1743511837636,-500.0,0.00016986,2]
[356970082,1743511837646,-791.06,0.00016986,2]
[356970084,1743511837655,-500.0,0.00016986,2]
[356970086,1743511837664,-500.0,0.00016986,2]
[356970088,1743511837674,-500.0,0.00016986,2]
[356970090,1743511837683,-500.0,0.00016986,2]
[356970092,1743511837692,-500.0,0.00016986,2]
[356970094,1743511837701,-500.0,0.00016986,2]
[356970096,1743511837711,-500.0,0.00016986,2]
[356970098,1743511837720,-500.0,0.00016986,2]
[356970100,1743511837729,-500.0,0.00016986,2]
[356970102,1743511837738,-500.0,0.00016986,2]
[356970104,1743511837748,-500.0,0.00016986,2]
[356970106,1743511837757,-500.0,0.00016986,2]
[356970108,1743511837766,-1670.24,0.00016986,2]
[356970110,1743511837776,-500.0,0.00016986,2]
[356970112,1743511837786,-500.0,0.00016986,2]
[356970114,1743511837795,-500.0,0.00016986,2]
[356970116,1743511837804,-500.0,0.00016986,2]
[356970118,1743511837814,-500.0,0.00016986,2]
[356970120,1743511837823,-500.0,0.00016986,2]
[356970122,1743511837832,-500.0,0.00016986,2]
[356970124,1743511837842,-707.22,0.00016986,2]
[356970126,1743511837851,-500.0,0.00016986,2]
[356970128,1743511837861,-500.0,0.00016986,2]
[356970130,1743511837870,-500.0,0.00016986,2]
[356970132,1743511837880,-500.0,0.00016986,2]
[356970134,1743511837889,-500.0,0.00016986,2]
[356970136,1743511837898,-901.5,0.00016986,2]
[356970138,1743511837908,-500.0,0.00016986,2]
[356970140,1743511837917,-500.0,0.00016986,2]
[356970142,1743511837928,-864.64,0.00016986,2]
[356970144,1743511837937,-500.0,0.00016986,2]
[356970146,1743511837947,-619.0,0.00016986,2]
[356970148,1743511837956,-896.88,0.00016986,2]
[356970150,1743511837966,-500.0,0.00016986,2]
[356970152,1743511837975,-500.0,0.00016986,2]
[356970154,1743511837985,-1772.12,0.00016986,2]
[356970156,1743511837994,-500.0,0.00016986,2]
[356970158,1743511838003,-596.7,0.00016986,2]
[356970160,1743511838012,-500.0,0.00016986,2]
[356970162,1743511838023,-500.0,0.00016986,2]
[356970164,1743511838032,-500.0,0.00016986,2]
[356970166,1743511838041,-500.0,0.00016986,2]
[356970168,1743511838051,-500.0,0.00016986,2]
[356970170,1743511838060,-3356.11,0.00016986,2]
[356970172,1743511838070,-500.0,0.00016986,2]
[356970174,1743511838079,-500.0,0.00016986,2]
[356970176,1743511838088,-540.11,0.00016986,2]
[356970178,1743511838098,-640.2,0.00016986,2]
[356970180,1743511838107,-564.61,0.00016986,2]
[356970182,1743511838119,-1033.56,0.00016986,2]
[356970184,1743511838130,-500.0,0.00016986,2]
[356970186,1743511838139,-500.0,0.00016986,2]
[356970187,1743511838149,-532.66,0.00016986,2]
[356970189,1743511838158,-2934.38,0.00016986,2]
[356970191,1743511838170,-500.0,0.00016986,2]
[356970193,1743511838179,-987.59,0.00016986,2]
[356970195,1743511838188,-500.0,0.00016986,2]
[356970196,1743511838198,-500.0,0.00016986,2]
[356970198,1743511838208,-500.0,0.00016986,2]
[356970200,1743511838217,-599.43,0.00016986,2]
[356970202,1743511838226,-4154.16,0.00016986,2]
[356970203,1743511838235,-500.0,0.00016986,2]
[356970205,1743511838244,-500.0,0.00016986,2]
[356970207,1743511838253,-500.0,0.00016986,2]
[356970209,1743511838263,-500.0,0.00016986,2]
[356970210,1743511838273,-500.0,0.00016986,2]
[356970212,1743511838283,-500.0,0.00016986,2]
[356970214,1743511838292,-686.03,0.00016986,2]
[356970216,1743511838301,-255.29346982,0.00016986,2]
[356970218,1743511838310,-549.89,0.00016986,2]
[356970220,1743511838319,-500.0,0.00016986,2]